bitfinex-derivatives/quotes_BTCF0:USTF0_20250602
["timestamp","ask_amount","ask_price","bid_price","bid_amount"]
[1748824921709,0.79640195,105600.0,105590.0,2.77573976]
[1748824923824,0.79632195,105600.0,105590.0,2.81773976]
[1748824924706,0.16141545,105600.0,105590.0,2.81773976]
[1748824924915,0.12911545,105600.0,105590.0,2.81773976]
[1748824925209,0.19424228,105610.0,105600.0,0.1893066]
[1748824925409,0.14864228,105610.0,105600.0,1.61869712]
[1748824925815,0.14864228,105610.0,105600.0,3.11869712]
[1748824926019,0.04144228,105610.0,105600.0,3.11869712]
[1748824926322,0.00026228,105610.0,105600.0,3.51548912]
[1748824926619,0.00014228,105610.0,105600.0,3.56356424]
[1748824926810,0.00026228,105610.0,105600.0,3.56356424]
[1748824927918,0.00026228,105610.0,105600.0,3.58125489]
[1748824928112,0.00014228,105610.0,105600.0,3.58125489]
[1748824928420,0.00026228,105610.0,105600.0,3.58125489]
[1748824930314,0.00026228,105610.0,105600.0,3.58127894]
[1748824931621,0.00026228,105610.0,105600.0,3.67370643]
[1748824932325,0.00026228,105610.0,105600.0,3.52306042]
[1748824932711,0.00026228,105610.0,105600.0,3.78075779]
[1748824934433,0.00026228,105610.0,105600.0,3.69143104]
[1748824934635,0.00026228,105610.0,105600.0,3.78081036]
[1748824935138,0.04556228,105610.0,105600.0,3.78081036]
[1748824935338,0.04556228,105610.0,105600.0,3.33541036]
[1748824935529,0.04556228,105610.0,105600.0,3.68607836]
[1748824935924,0.00026228,105610.0,105600.0,3.68607836]
[1748824936127,8e-08,105610.0,105600.0,3.78077036]
[1748824936426,0.002,105630.0,105620.0,0.1892707]
[1748824936636,0.002,105630.0,105620.0,2.28026122]
[1748824936830,0.002,105630.0,105620.0,2.41432501]
[1748824937139,0.002,105630.0,105620.0,3.97330938]
[1748824937344,0.00212,105630.0,105620.0,3.97330938]
[1748824937847,0.00212,105630.0,105620.0,4.02144088]
[1748824938030,0.00212,105630.0,105620.0,3.90652562]
[1748824938232,0.24020228,105640.0,105630.0,0.1892528]
[1748824938430,0.23995101,105640.0,105630.0,1.15569611]
[1748824938632,0.13279101,105640.0,105630.0,1.1105706]
[1748824938838,0.23995101,105640.0,105630.0,1.1105706]
[1748824939039,0.23995101,105640.0,105630.0,1.15559198]
[1748824939242,0.23995101,105640.0,105630.0,1.16059198]
[1748824940441,0.23995101,105640.0,105630.0,1.16359198]
[1748824940948,0.23995101,105640.0,105630.0,1.46269198]
[1748824942645,0.23995101,105640.0,105630.0,2.96269198]
[1748824943137,0.23995101,105640.0,105630.0,2.96265197]
[1748824945171,0.42918591,105640.0,105630.0,2.96265197]
[1748824945341,0.42918591,105640.0,105630.0,3.40781197]
[1748824946043,0.42918591,105640.0,105630.0,3.40681197]
[1748824946847,0.42918591,105640.0,105630.0,3.40181197]
[1748824947041,0.42918591,105640.0,105630.0,3.40381197]
[1748824947444,0.42918591,105640.0,105630.0,3.40381217]
[1748824950753,0.42918591,105640.0,105630.0,2.79993691]
[1748824950958,0.54410117,105640.0,105630.0,1.65948411]
[1748824951252,0.54410117,105640.0,105630.0,0.00450254]
[1748824951253,1.34994117,105640.0,105630.0,0.00450254]
[1748824951655,1.34994117,105640.0,105630.0,1.50450254]
[1748824951843,1.34994117,105640.0,105630.0,0.00450254]
[1748824952251,1.26070627,105640.0,105620.0,1.5]
[1748824952443,0.5313207,105630.0,105620.0,1.82974873]
[1748824952643,0.59745111,105630.0,105620.0,2.01901943]
[1748824952844,0.59745111,105630.0,105620.0,1.82974873]
[1748824953044,0.59745111,105630.0,105620.0,1.57974873]
[1748824954259,0.59745111,105630.0,105620.0,1.50074873]
[1748824955341,0.69745111,105630.0,105620.0,1.50074873]
[1748824956352,0.69745111,105630.0,105620.0,1.49974873]
[1748824956662,0.69945111,105630.0,105620.0,1.49974873]
[1748824956851,0.70245111,105630.0,105620.0,1.49974873]
[1748824957158,1.06325111,105630.0,105620.0,1.49974873]
[1748824957342,0.1892707,105620.0,105610.0,0.00222542]
[1748824957546,0.1892707,105620.0,105610.0,0.15222542]
[1748824957547,1.30286596,105620.0,105610.0,0.15222542]
[1748824957759,1.34696596,105620.0,105610.0,0.15222542]
[1748824957965,1.34696596,105620.0,105610.0,1.65222542]
[1748824957966,1.46479588,105620.0,105610.0,1.65222542]
[1748824958655,1.46479588,105620.0,105610.0,0.00222542]
[1748824958959,1.34721723,105620.0,105610.0,0.00222542]
[1748824959360,1.44721723,105620.0,105610.0,0.00222542]
[1748824960247,1.44921723,105620.0,105610.0,0.00222542]
[1748824960448,1.44921723,105620.0,105610.0,0.19151402]
[1748824961542,1.45121723,105620.0,105610.0,0.19151402]
[1748824962159,1.44921723,105620.0,105610.0,0.19151402]
[1748824962353,1.56479588,105620.0,105610.0,0.19151402]
[1748824962560,1.56479588,105620.0,105610.0,0.00222542]
[1748824963852,1.56679588,105620.0,105610.0,0.00222542]
[1748824964950,1.56879588,105620.0,105610.0,0.00222542]
[1748824965561,1.52419588,105620.0,105610.0,0.00222542]
[1748824967359,1.52419588,105620.0,105610.0,0.19151412]
[1748824967549,1.40928062,105620.0,105610.0,0.00222542]
[1748824967750,1.40940062,105620.0,105610.0,0.19151412]
[1748824967946,1.29174197,105620.0,105610.0,0.19151412]
[1748824968653,1.29174197,105620.0,105610.0,0.23651412]
[1748824968654,0.73982197,105620.0,105610.0,0.23651412]
[1748824968854,0.48206197,105620.0,105610.0,0.71222938]
[1748824969047,0.92694197,105620.0,105610.0,0.75582938]
[1748824969251,0.92682197,105620.0,105610.0,0.75582938]
[1748824969452,0.92682197,105620.0,105610.0,0.64091412]
[1748824969659,1.04173723,105620.0,105610.0,0.59731412]
[1748824969861,1.04185723,105620.0,105610.0,0.59731412]
[1748824970548,0.92694197,105620.0,105610.0,0.59731412]
[1748824970954,0.48206197,105620.0,105610.0,0.59731412]
[1748824971160,0.37514197,105620.0,105610.0,0.55231412]
[1748824971363,0.92690197,105620.0,105610.0,2.05231412]
[1748824971865,1.04181723,105620.0,105610.0,2.05231412]
[1748824972060,0.92690197,105620.0,105610.0,2.05231412]
[1748824972564,0.92690197,105620.0,105610.0,2.09571412]
[1748824973455,0.92690197,105620.0,105610.0,1.90642542]
[1748824974065,0.92690197,105620.0,105610.0,2.09571402]
[1748824974265,1.04181723,105620.0,105610.0,2.09571402]
[1748824974665,0.92690197,105620.0,105610.0,2.09571402]
[1748824975157,0.37514197,105620.0,105610.0,2.09571402]
[1748824975356,0.92666197,105620.0,105610.0,2.25352928]
[1748824975866,0.96866197,105620.0,105610.0,2.25352928]
[1748824977066,0.96866197,105620.0,105610.0,2.13861402]
[1748824978970,0.96866197,105620.0,105610.0,1.94932542]
[1748824981561,1.56187588,105620.0,105610.0,1.50222542]
[1748824982460,1.44429723,105620.0,105610.0,1.50222542]
[1748824982662,1.59145735,105620.0,105610.0,1.50222542]
[1748824983264,0.92510209,105620.0,105610.0,0.30642928]
[1748824983469,1.594487,105620.0,105610.0,0.39062928]
[1748824983770,1.594367,105620.0,105610.0,0.27571402]
[1748824983966,1.594487,105620.0,105610.0,0.27571402]
[1748824984365,1.596487,105620.0,105610.0,0.27571402]
[1748824984971,1.594487,105620.0,105610.0,0.27571402]
[1748824985475,1.59673827,105620.0,105610.0,0.27571402]
[1748824985672,1.44957815,105620.0,105610.0,0.27571402]
[1748824985976,1.44757815,105620.0,105610.0,0.27571402]
[1748824986376,1.08677815,105620.0,105610.0,0.27571402]
[1748824986577,1.44757815,105620.0,105610.0,0.27571402]
[1748824987576,1.59473827,105620.0,105610.0,0.27571402]
[1748824987972,1.59473827,105620.0,105610.0,0.08642542]
[1748824989577,1.59473827,105620.0,105610.0,0.27571392]
[1748824990272,1.15005827,105620.0,105610.0,0.27571392]
[1748824990468,1.59465827,105620.0,105610.0,0.27571392]
[1748824990668,1.23385827,105620.0,105610.0,0.27571392]
[1748824990873,1.08669815,105620.0,105610.0,0.27571392]
[1748824991674,1.08653815,105620.0,105610.0,0.63651392]
[1748824991881,1.08665815,105620.0,105610.0,0.63651392]
[1748824992277,1.23381827,105620.0,105610.0,2.13651392]
[1748824992773,1.08665815,105620.0,105610.0,2.13651392]
[1748824993176,1.23381827,105620.0,105610.0,2.13651392]
[1748824994882,1.23381827,105620.0,105610.0,1.77571392]
[1748824996780,1.34873353,105620.0,105610.0,1.54522542]
[1748824997973,1.34873353,105620.0,105610.0,1.50222542]
[1748824998183,0.90417353,105620.0,105610.0,1.50222542]
[1748824998478,1.34865353,105620.0,105610.0,1.50222542]
[1748824998675,1.34865353,105620.0,105610.0,1.54462542]
[1748824998872,1.23373827,105620.0,105610.0,1.54462542]
[1748824999769,1.34865353,105620.0,105610.0,1.54462542]
[1748825001073,1.34865353,105620.0,105610.0,1.50222542]
[1748825001481,1.23066862,105620.0,105610.0,1.50222542]
[1748825001776,1.59146862,105620.0,105610.0,0.00222542]
[1748825001978,1.4443085,105620.0,105610.0,0.00222542]
[1748825002476,1.65043766,105620.0,105610.0,0.00222542]
[1748825003173,1.59189394,105620.0,105610.0,0.00222542]
[1748825003980,1.59389394,105620.0,105610.0,0.00222542]
[1748825004181,1.68857794,105620.0,105610.0,0.00222542]
[1748825004873,1.69057794,105620.0,105610.0,0.00222542]
[1748825006371,1.57566268,105620.0,105610.0,0.00222542]
[1748825006568,1.69057794,105620.0,105610.0,0.00222542]
[1748825009168,1.8967071,105620.0,105610.0,0.00222542]
[1748825010183,2.2575071,105620.0,105610.0,0.00222542]
[1748825010384,2.2573471,105620.0,105610.0,0.00222542]
[1748825011983,2.1626631,105620.0,105610.0,0.00222542]
[1748825012687,2.01507766,105620.0,105610.0,0.00222542]
[1748825015785,2.01507766,105620.0,105610.0,0.00106581]
[1748825016785,1.20995766,105620.0,105610.0,0.00106581]
[1748825016979,1.1784824,105620.0,105610.0,0.00106581]
[1748825017180,0.7341224,105620.0,105610.0,0.13346581]
[1748825017488,1.1784824,105620.0,105610.0,0.32275431]
[1748825017687,1.1783624,105620.0,105610.0,0.32275431]
[1748825017887,1.1784824,105620.0,105610.0,0.32275431]
[1748825018089,1.1764824,105620.0,105610.0,0.32275431]
[1748825018474,1.1764824,105620.0,105610.0,0.13346581]
[1748825018882,1.32209682,105620.0,105610.0,0.13346581]
[1748825020692,1.23583682,105620.0,105610.0,0.32275441]
[1748825020898,0.98842766,105620.0,105610.0,0.32275441]
[1748825021190,1.03040766,105620.0,105610.0,0.32275441]
[1748825021390,1.03052766,105620.0,105610.0,0.32275441]
[1748825021589,1.03052766,105620.0,105610.0,1.82275441]
[1748825022294,1.03048766,105620.0,105610.0,1.82275441]
[1748825022588,0.43871324,105620.0,105610.0,1.82275441]
[1748825022778,0.95886972,105620.0,105610.0,1.82275441]
[1748825025497,0.84077324,105620.0,105610.0,1.86795814]
[1748825025985,0.84077324,105620.0,105610.0,1.82275441]
[1748825026690,0.88257324,105620.0,105610.0,1.82275441]
[1748825030696,0.88257324,105620.0,105610.0,1.63346581]
[1748825031699,0.88257324,105620.0,105610.0,1.93766967]
[1748825031997,0.88241324,105620.0,105610.0,2.29846967]
[1748825032188,0.88241324,105620.0,105610.0,2.34365664]
[1748825033191,0.88241324,105620.0,105610.0,2.22874138]
[1748825033393,0.88241324,105620.0,105610.0,2.18355441]
[1748825034600,0.43841324,105620.0,105610.0,2.18355441]
[1748825034802,0.84057324,105620.0,105610.0,2.18355441]
[1748825035200,0.84045324,105620.0,105610.0,2.18355441]
[1748825035500,0.84045324,105620.0,105610.0,1.82275441]
[1748825035501,0.84057324,105620.0,105610.0,1.82275441]
[1748825035694,0.84057324,105620.0,105610.0,2.29846967]
[1748825036102,0.84057324,105620.0,105610.0,2.59756967]
[1748825036497,0.39661324,105620.0,105610.0,2.59756967]
[1748825036693,0.84045324,105620.0,105610.0,2.61756967]
[1748825036894,0.84057324,105620.0,105610.0,2.61756967]
[1748825037090,1.15566498,105620.0,105610.0,0.34286581]
[1748825037490,1.51646498,105620.0,105610.0,0.00106581]
[1748825037697,1.3983685,105620.0,105610.0,0.00106581]
[1748825038000,0.20853385,105610.0,105600.0,0.00014228]
[1748825038202,0.92687426,105610.0,105600.0,0.00014228]
[1748825038704,1.07473995,105610.0,105600.0,0.00014228]
[1748825039404,1.17473995,105610.0,105600.0,0.00014228]
[1748825039904,1.17873995,105610.0,105600.0,0.00014228]
[1748825043001,1.03112553,105610.0,105600.0,0.00014228]
[1748825047003,0.88916043,105610.0,105580.0,0.53461827]
[1748825047200,0.1893244,105590.0,105580.0,1.06561434]
[1748825047510,0.1893244,105590.0,105580.0,2.6805296]
[1748825047511,0.18957567,105590.0,105580.0,2.6805296]
[1748825047699,0.30857567,105590.0,105580.0,2.6805296]
[1748825048413,0.30857567,105590.0,105580.0,2.58723829]
[1748825048604,0.40857567,105590.0,105580.0,2.58723829]
[1748825048804,0.41781454,105590.0,105580.0,2.58723829]
[1748825049207,0.40857567,105590.0,105580.0,2.58723829]
[1748825049410,0.40857567,105590.0,105580.0,2.61723829]
[1748825049411,0.10025127,105590.0,105580.0,2.61723829]
[1748825049708,0.10025127,105590.0,105580.0,3.34251393]
[1748825050010,0.10025127,105590.0,105580.0,3.29429226]
[1748825050011,0.00025127,105590.0,105580.0,3.29429226]
[1748825050411,0.10661127,105590.0,105580.0,3.73817226]
[1748825050616,0.10649127,105590.0,105580.0,3.73817226]
[1748825050911,0.10661127,105590.0,105580.0,3.44007226]
[1748825051401,0.10674254,105590.0,105580.0,3.44007226]
[1748825051598,0.10686254,105590.0,105580.0,3.44007226]
[1748825051800,0.10686254,105590.0,105580.0,3.44207226]
[1748825052006,0.10686254,105590.0,105580.0,3.50234934]
[1748825052401,0.10786254,105590.0,105580.0,3.50434934]
[1748825052597,0.10786254,105590.0,105580.0,3.5655024]
[1748825053113,0.29718704,105590.0,105580.0,3.3155024]
[1748825053408,0.29718704,105590.0,105580.0,2.8716224]
[1748825053610,0.29718704,105590.0,105580.0,3.3155024]
[1748825053812,0.29718704,105590.0,105580.0,2.77691041]
[1748825054014,0.33718704,105590.0,105580.0,1.10284209]
[1748825054315,0.37668704,105590.0,105580.0,1.20566487]
[1748825054515,0.37668704,105590.0,105580.0,2.66136912]
[1748825056514,0.37668704,105590.0,105580.0,1.16136912]
[1748825056917,0.37668704,105590.0,105580.0,2.96046912]
[1748825057922,0.82052704,105590.0,105580.0,2.96046912]
[1748825058518,0.82052704,105590.0,105580.0,1.46046912]
[1748825059013,0.82052704,105590.0,105580.0,2.96046912]
[1748825060113,0.04162254,105590.0,105580.0,2.91228452]
[1748825060316,0.10790254,105590.0,105580.0,2.95658027]
[1748825060712,0.10790254,105590.0,105580.0,3.01573333]
[1748825060713,0.10778254,105590.0,105580.0,3.01573333]
[1748825060914,0.10790254,105590.0,105580.0,3.01573333]
[1748825061120,0.00162254,105590.0,105580.0,3.01573333]
[1748825061412,0.10790254,105590.0,105580.0,3.06929609]
[1748825061618,0.10778254,105590.0,105580.0,3.11435456]
[1748825061807,0.10790254,105590.0,105580.0,3.11435456]
[1748825062117,0.10790254,105590.0,105580.0,3.06616181]
[1748825063014,0.10790254,105590.0,105580.0,3.0513123]
[1748825063904,0.00162254,105590.0,105580.0,3.0513123]
[1748825064107,0.10778254,105590.0,105580.0,3.8645063]
[1748825064307,0.10642228,105600.0,105590.0,0.1893244]
[1748825064506,0.10642228,105600.0,105590.0,1.25420764]
[1748825065116,0.10626228,105600.0,105590.0,1.25420764]
[1748825065514,0.10626228,105600.0,105590.0,1.25720764]
[1748825065716,0.10626228,105600.0,105590.0,1.21214917]
[1748825065919,0.10626228,105600.0,105590.0,1.25724081]
[1748825066219,0.10626228,105600.0,105590.0,1.26024081]
[1748825067914,0.10626228,105600.0,105590.0,1.62104081]
[1748825068110,0.29556878,105600.0,105590.0,1.62104081]
[1748825068619,0.29556878,105600.0,105590.0,1.92014081]
[1748825070222,0.29556878,105600.0,105590.0,1.92013024]
[1748825070817,0.41346878,105600.0,105590.0,1.92013024]
[1748825072320,0.37446878,105600.0,105590.0,1.93216699]
[1748825072910,0.37446878,105600.0,105590.0,1.99132005]
[1748825074621,0.37446878,105600.0,105590.0,1.99130567]
[1748825075827,0.37446878,105600.0,105590.0,1.26970567]
[1748825076120,0.37446878,105600.0,105590.0,1.99130567]
[1748825077129,0.37446878,105600.0,105590.0,1.26970567]
[1748825077316,0.18516228,105600.0,105590.0,1.99130567]
[1748825077514,0.37446878,105600.0,105590.0,1.99130567]
[1748825078524,0.18516228,105600.0,105590.0,1.99131605]
[1748825079125,0.37446878,105600.0,105590.0,1.99066326]
[1748825079516,0.37446878,105600.0,105590.0,2.03574446]
[1748825079717,0.37446878,105600.0,105590.0,2.47934446]
[1748825080016,0.37446878,105600.0,105590.0,2.43426326]
[1748825080229,0.37446878,105600.0,105590.0,2.4792755]
[1748825082027,0.37446888,105600.0,105590.0,2.4792755]
[1748825083921,0.18516228,105600.0,105590.0,2.4792755]
[1748825084120,0.14568228,105600.0,105590.0,2.4792755]
[1748825084317,0.14568228,105600.0,105590.0,2.41903456]
[1748825084524,0.14568228,105600.0,105590.0,3.91903456]
[1748825085025,0.37558878,105600.0,105590.0,3.91903456]
[1748825085232,0.37558878,105600.0,105590.0,3.87395024]
[1748825085420,0.18628228,105600.0,105590.0,3.91904616]
[1748825086924,0.08016228,105600.0,105590.0,3.99133529]
[1748825088729,0.08016228,105600.0,105590.0,4.03273529]
[1748825089330,0.08016228,105600.0,105590.0,3.92855839]
[1748825089530,0.08016228,105600.0,105590.0,3.97369219]
[1748825090628,0.10612,105610.0,105600.0,0.1893065]
[1748825090825,0.10612,105610.0,105600.0,1.53424322]
[1748825091028,0.4135912,105620.0,105610.0,0.1892886]
[1748825091234,0.4135912,105620.0,105610.0,2.92400149]
[1748825091527,0.1182,105620.0,105610.0,3.42661135]
[1748825091729,0.22444,105620.0,105610.0,3.42661135]
[1748825092225,0.4137106,105620.0,105610.0,3.42661135]
[1748825092628,0.4137106,105620.0,105610.0,3.34771135]
[1748825094634,0.4137106,105620.0,105610.0,2.94333135]
[1748825096022,0.4137106,105620.0,105610.0,2.90423135]
[1748825097534,0.4137106,105620.0,105610.0,2.84392135]
[1748825097828,0.4137106,105620.0,105610.0,2.75443372]
[1748825098034,0.4137106,105620.0,105610.0,3.20453402]
[1748825098339,0.4135506,105620.0,105610.0,3.14540416]
[1748825098530,0.4135506,105620.0,105610.0,3.22700416]
[1748825101234,0.4135506,105620.0,105610.0,3.2269917]
[1748825101440,0.22428,105620.0,105610.0,3.2269917]
[1748825101630,0.14458,105620.0,105610.0,3.2269917]
[1748825101826,0.10608,105620.0,105610.0,3.3305495]
[1748825102023,0.00012,105620.0,105610.0,3.3305495]
[1748825102224,0.41985558,105630.0,105620.0,0.1892706]
[1748825102435,0.41985558,105630.0,105620.0,0.88392161]
[1748825102635,0.41985558,105630.0,105620.0,0.82368586]
[1748825103237,0.42185558,105630.0,105620.0,0.82368586]
[1748825103533,0.42185558,105630.0,105620.0,0.5900706]
[1748825103728,0.42185558,105630.0,105620.0,0.5500706]
[1748825104127,0.42285558,105630.0,105620.0,0.5500706]
[1748825104335,0.42285558,105630.0,105620.0,0.1892706]
[1748825104537,0.42285558,105630.0,105620.0,0.9708706]
[1748825107133,0.42285558,105630.0,105620.0,1.2699706]
[1748825112534,0.42285558,105630.0,105620.0,1.31494224]
[1748825113240,0.42285558,105630.0,105620.0,0.95414224]
[1748825113642,0.31689558,105630.0,105620.0,0.95414518]
[1748825113842,0.86601558,105630.0,105620.0,1.06906044]
[1748825114446,0.86601558,105630.0,105620.0,1.117241]
[1748825114643,0.86601558,105630.0,105620.0,1.06906044]
[1748825115351,0.86601558,105630.0,105620.0,1.117241]
[1748825117948,0.86601558,105630.0,105620.0,1.11726562]
[1748825119050,0.86601558,105630.0,105620.0,0.81816562]
[1748825120351,0.86601558,105630.0,105620.0,0.81821538]
[1748825120552,0.86601558,105630.0,105620.0,0.70330012]
[1748825122053,0.86601558,105630.0,105620.0,0.86001538]
[1748825122453,0.86601558,105630.0,105620.0,0.86002024]
[1748825122656,0.86601558,105630.0,105620.0,0.74510498]
[1748825126553,0.86601558,105630.0,105620.0,0.7451352]
[1748825129057,0.86601558,105630.0,105620.0,0.78949489]
[1748825130957,0.86601558,105630.0,105620.0,0.70005116]
[1748825131158,0.86601558,105630.0,105620.0,0.7895201]
[1748825131961,0.86601558,105630.0,105620.0,0.74514787]
[1748825132454,0.86601558,105630.0,105620.0,0.7895201]
[1748825133061,0.98093084,105630.0,105620.0,0.5584495]
[1748825133254,1.09895599,105630.0,105620.0,0.40589671]
[1748825133763,1.22854526,105630.0,105620.0,0.3608]
[1748825133964,0.1892707,105620.0,105610.0,0.93656566]
[1748825134159,0.42992951,105620.0,105610.0,0.94656566]
[1748825134358,0.42992951,105620.0,105610.0,0.99165928]
[1748825136556,0.3117707,105620.0,105610.0,0.99165928]
[1748825136862,0.3117707,105620.0,105610.0,0.69255928]
[1748825137359,0.42992951,105620.0,105610.0,0.69255928]
[1748825137563,0.3117707,105620.0,105610.0,0.69255928]
[1748825139567,0.3117707,105620.0,105610.0,0.84743474]
[1748825139568,0.7546907,105620.0,105610.0,0.84743474]
[1748825139758,0.7546907,105620.0,105610.0,0.88903474]
[1748825139961,0.3117707,105620.0,105610.0,0.88903474]
[1748825140164,0.3118907,105620.0,105610.0,0.88903474]
[1748825140375,0.3118907,105620.0,105610.0,0.88902875]
[1748825140666,0.1893907,105620.0,105610.0,0.88902875]
[1748825140867,0.6322707,105620.0,105610.0,0.88902875]
[1748825141168,0.6321507,105620.0,105610.0,0.88902875]
[1748825141369,0.6322707,105620.0,105610.0,0.88902875]
[1748825142771,0.1893907,105620.0,105610.0,1.18812875]
[1748825143270,0.2951906,105620.0,105610.0,1.40812875]
[1748825143872,0.2951906,105620.0,105610.0,1.36308092]
[1748825144169,0.2951906,105620.0,105610.0,1.29321476]
[1748825144170,0.3350906,105620.0,105610.0,1.29321476]
[1748825144363,0.4163906,105620.0,105610.0,1.03161476]
[1748825144563,0.53130586,105620.0,105610.0,0.98161826]
[1748825144967,0.53130586,105620.0,105610.0,0.79232966]
[1748825145164,0.4163906,105620.0,105610.0,0.98161826]
[1748825145567,0.4163906,105620.0,105610.0,0.75312966]
[1748825145766,0.4163906,105620.0,105600.0,0.78324587]
[1748825145767,0.1892886,105610.0,105600.0,0.40912284]
[1748825145961,1.18794386,105610.0,105600.0,0.00014228]
[1748825146166,1.40079467,105610.0,105600.0,0.0451941]
[1748825146472,1.43025028,105610.0,105600.0,0.00014228]
[1748825146672,1.43025028,105610.0,105580.0,0.71016429]
[1748825146673,0.047328,105600.0,105580.0,0.71016429]
[1748825146871,0.85287976,105590.0,105580.0,0.44288373]
[1748825147061,0.7379645,105590.0,105580.0,0.67721358]
[1748825147266,0.8187645,105590.0,105580.0,0.78544139]
[1748825147469,0.8187645,105590.0,105580.0,0.83043042]
[1748825148566,0.8187645,105590.0,105580.0,0.82454139]
[1748825148964,0.8187245,105590.0,105580.0,1.04304139]
[1748825149264,0.8187245,105590.0,105580.0,0.92812613]
[1748825149461,0.8187245,105590.0,105580.0,0.83304139]
[1748825150171,0.8187245,105590.0,105580.0,0.83504139]
[1748825150474,0.86685843,105590.0,105580.0,0.83504139]
[1748825150773,0.86685843,105590.0,105580.0,0.83604139]
[1748825152568,0.86685843,105590.0,105580.0,0.28272613]
[1748825152967,0.98177369,105590.0,105580.0,0.19442613]
[1748825153468,0.86685843,105590.0,105580.0,0.19442613]
[1748825153669,0.86685843,105590.0,105580.0,0.19142613]
[1748825153863,0.96689843,105590.0,105580.0,0.62552613]
[1748825154268,0.96689843,105590.0,105580.0,0.74044139]
[1748825157279,0.96701843,105590.0,105580.0,0.62552613]
[1748825157578,0.96701843,105590.0,105580.0,0.22342613]
[1748825157781,1.44273369,105590.0,105580.0,0.00208373]
[1748825158372,1.44273369,105590.0,105580.0,0.00308373]
[1748825158572,1.44273369,105590.0,105580.0,0.19242613]
[1748825158979,1.44273369,105590.0,105580.0,0.00508373]
[1748825159180,1.44273369,105590.0,105580.0,0.00408373]
[1748825159181,1.45230178,105590.0,105580.0,0.00408373]
[1748825160374,1.45230178,105590.0,105580.0,0.00208373]
[1748825161081,1.57129709,105590.0,105580.0,0.00208373]
[1748825161278,1.57329709,105590.0,105580.0,0.00208373]
[1748825162682,1.45530178,105590.0,105580.0,0.00208373]
[1748825165573,1.34038652,105590.0,105580.0,0.00208373]
[1748825165890,1.45530178,105590.0,105580.0,0.00208373]
[1748825171579,1.45530178,105590.0,105560.0,1.16991146]
[1748825171580,0.1893603,105570.0,105560.0,0.6599]
[1748825171775,0.1893782,105560.0,105550.0,1.07275351]
[1748825171979,0.2881782,105560.0,105550.0,1.41204625]
[1748825172580,0.2881782,105560.0,105550.0,0.88775069]
[1748825172775,0.2881782,105560.0,105550.0,1.00243139]
[1748825173478,0.2881782,105560.0,105550.0,1.03243139]
[1748825173680,0.2881782,105560.0,105550.0,1.03543139]
[1748825173988,0.2881782,105560.0,105550.0,1.00543139]
[1748825174381,0.86389346,105560.0,105550.0,0.42333529]
[1748825174580,0.86389346,105560.0,105550.0,0.05933529]
[1748825174883,0.86389346,105560.0,105550.0,0.06233529]
[1748825174884,1.93837346,105560.0,105550.0,0.06233529]
[1748825176986,1.93837346,105560.0,105550.0,0.09343529]
[1748825177586,1.9456982,105560.0,105550.0,0.39774665]
[1748825177884,1.9124182,105560.0,105550.0,0.43144665]
[1748825178089,1.9781982,105560.0,105550.0,0.61563139]
[1748825178483,1.9781982,105560.0,105550.0,0.42623529]
[1748825178890,2.45403346,105560.0,105550.0,0.36143529]
[1748825179489,2.09323346,105560.0,105550.0,0.36143529]
[1748825179686,2.45403346,105560.0,105550.0,0.36616529]
[1748825183998,2.45403346,105560.0,105550.0,0.06706529]
[1748825189005,2.48413346,105560.0,105550.0,0.06706529]
[1748825190105,2.3692182,105560.0,105550.0,0.06706529]
[1748825190297,2.48413346,105560.0,105550.0,0.09716529]
[1748825191703,2.3691382,105560.0,105550.0,0.09716529]
[1748825191901,2.3691382,105560.0,105550.0,0.15866529]
[1748825192911,2.48713351,105560.0,105550.0,0.15866529]
[1748825194013,2.48713351,105560.0,105550.0,0.12816529]
[1748825194320,2.60204877,105560.0,105550.0,0.12816529]
[1748825195512,2.48709351,105560.0,105550.0,0.12816529]
[1748825195813,2.48709351,105560.0,105550.0,0.15846529]
[1748825196917,2.60200877,105560.0,105550.0,0.15846529]
[1748825198615,2.05368877,105560.0,105550.0,0.34786139]
[1748825198819,2.05368877,105560.0,105550.0,0.46277665]
[1748825198820,2.48689351,105560.0,105550.0,0.46277665]
[1748825199205,2.48677351,105560.0,105550.0,0.46277665]
[1748825199422,1.65339351,105560.0,105550.0,0.46277665]
[1748825199722,2.02997351,105560.0,105550.0,0.82357665]
[1748825200018,2.03009351,105560.0,105550.0,0.82357665]
[1748825200213,1.48185351,105560.0,105550.0,0.82357665]
[1748825200521,2.03009351,105560.0,105550.0,0.82357665]
[1748825200914,1.48197351,105560.0,105550.0,0.82357665]
[1748825201116,2.02997351,105560.0,105550.0,0.83357665]
[1748825201418,2.03009351,105560.0,105550.0,0.83357665]
[1748825201921,2.03009351,105560.0,105550.0,1.13267665]
[1748825202511,1.48197351,105560.0,105550.0,1.13267665]
[1748825202711,2.03005351,105560.0,105550.0,1.13267665]
[1748825203022,1.9120582,105560.0,105550.0,1.22572915]
[1748825205820,1.4694982,105560.0,105550.0,1.22572915]
[1748825207120,1.28012,105560.0,105550.0,1.66824915]
[1748825207318,1.4694981,105560.0,105550.0,2.00940879]
[1748825207523,0.3950181,105560.0,105550.0,1.91467279]
[1748825207711,0.20552,105560.0,105550.0,2.25940879]
[1748825207912,0.10564,105560.0,105550.0,2.31856913]
[1748825208114,0.10552,105560.0,105550.0,2.06856913]
[1748825208318,0.10564,105560.0,105550.0,2.06856913]
[1748825208524,0.10564,105560.0,105550.0,2.00940879]
[1748825208525,0.2950181,105560.0,105550.0,2.00940879]
[1748825209820,0.00012,105560.0,105550.0,2.31856913]
[1748825210318,0.36123908,105570.0,105560.0,0.1893782]
[1748825210520,0.36123908,105570.0,105560.0,0.85289103]
[1748825210819,0.31389838,105570.0,105560.0,0.85289103]
[1748825211020,0.31389838,105570.0,105560.0,1.29533103]
[1748825211617,0.31389838,105570.0,105560.0,1.3252781]
[1748825211825,0.31389838,105570.0,105560.0,0.8538381]
[1748825212023,0.37659838,105570.0,105560.0,0.8538381]
[1748825212827,0.37659838,105570.0,105560.0,0.8758381]
[1748825213021,0.37659838,105570.0,105560.0,0.76092284]
[1748825213226,0.40979838,105570.0,105560.0,0.8758381]
[1748825213428,0.40979838,105570.0,105560.0,0.8805681]
[1748825213727,0.40979838,105570.0,105560.0,1.13485023]
[1748825213919,0.40979838,105570.0,105560.0,1.1796556]
[1748825215916,0.40979838,105570.0,105560.0,1.13485023]
[1748825216120,0.40979838,105570.0,105560.0,1.17964727]
[1748825216425,0.40979838,105570.0,105560.0,1.1314205]
[1748825216920,0.34609838,105570.0,105560.0,1.1314205]
[1748825217826,0.34609838,105570.0,105560.0,1.17964727]
[1748825218516,0.34609838,105570.0,105560.0,1.1314205]
[1748825219123,0.12433228,105570.0,105560.0,1.51063162]
[1748825219317,0.12433228,105570.0,105560.0,1.55885839]
[1748825219523,0.12433228,105570.0,105560.0,1.44394313]
[1748825219724,0.12445228,105570.0,105560.0,1.50310347]
[1748825220028,0.12433228,105570.0,105560.0,1.50310347]
[1748825220228,0.12433228,105570.0,105560.0,1.50306122]
[1748825220229,0.31369248,105570.0,105560.0,1.50306122]
[1748825220420,0.31381248,105570.0,105560.0,1.50306122]
[1748825220617,0.37791248,105570.0,105560.0,1.44390088]
[1748825221031,0.18855228,105570.0,105560.0,1.44390088]